[Event "Titled Tuesday Blitz March 07 Early 2023"]
[White "Baruch, Liam"]
[Black "Arencibia Monduy, Antonio"]
[WhiteFideId "14322064"]
[BlackFideId "3507939"]
[WhiteElo "2063"]
[BlackElo "2520"]
[Result "0-1"]
[Round "01"]
[TimeControl "180+2"]
[Date "2023.03.07"]
[WhiteClock "0:00:04"]
[BlackClock "0:00:06"]

1. e4 {[%clk 0:03:00]}  e6 {[%clk 0:02:59]} 2. d4 {[%clk 0:03:00]}  d5 {[%clk 0:02:59]} 3. Nc3 {[%clk 0:03:00]}  dxe4 {[%clk 0:02:59]} 4. Nxe4 {[%clk 0:03:01]}  Nd7 {[%clk 0:03:00]} 5. Nf3 {[%clk 0:03:00]}  Ngf6 {[%clk 0:03:00]} 6. Nxf6+ {[%clk 0:03:01]}  Nxf6 {[%clk 0:03:01]} 7. Bd3 {[%clk 0:03:01]}  Be7 {[%clk 0:03:01]} 8. O-O {[%clk 0:03:01]}  O-O {[%clk 0:03:01]} 9. Ne5 {[%clk 0:03:00]}  c5 {[%clk 0:02:56]} 10. dxc5 {[%clk 0:02:58]}  Qc7 {[%clk 0:02:56]} 11. Bf4 {[%clk 0:02:55]}  Qxc5 {[%clk 0:02:56]} 12. Re1 {[%clk 0:02:53]}  Nd5 {[%clk 0:01:41]} 13. Bg3 {[%clk 0:02:37]}  Nb4 {[%clk 0:01:28]} 14. Be4 {[%clk 0:02:22]}  f5 {[%clk 0:01:26]} 15. c3 {[%clk 0:01:46]}  fxe4 {[%clk 0:01:09]} 16. cxb4 {[%clk 0:01:45]}  Qxb4 {[%clk 0:01:10]} 17. Qg4 {[%clk 0:01:34]}  Qxb2 {[%clk 0:01:01]} 18. Qxe4 {[%clk 0:01:26]}  Bf6 {[%clk 0:00:53]} 19. Nc4 {[%clk 0:01:19]}  Qd4 {[%clk 0:00:46]} 20. Qc2 {[%clk 0:01:08]}  b5 {[%clk 0:00:45]} 21. Nd6 {[%clk 0:01:02]}  Qxa1 {[%clk 0:00:43]} 22. Rxa1 {[%clk 0:01:01]}  Bxa1 {[%clk 0:00:44]} 23. Qc6 {[%clk 0:00:47]}  Rb8 {[%clk 0:00:35]} 24. Nxb5 {[%clk 0:00:34]}  Rb6 {[%clk 0:00:27]} 25. Qc1 {[%clk 0:00:28]}  Rxb5 {[%clk 0:00:17]} 26. Qxa1 {[%clk 0:00:28]}  Bb7 {[%clk 0:00:14]} 27. h3 {[%clk 0:00:27]}  Rbf5 {[%clk 0:00:11]} 28. Qe1 {[%clk 0:00:23]}  Bd5 {[%clk 0:00:11]} 29. Qb1 {[%clk 0:00:18]}  R5f7 {[%clk 0:00:11]} 30. a3 {[%clk 0:00:17]}  h6 {[%clk 0:00:11]} 31. Qb4 {[%clk 0:00:17]}  Rb7 {[%clk 0:00:11]} 32. Qh4 {[%clk 0:00:16]}  Rbf7 {[%clk 0:00:10]} 33. Qb4 {[%clk 0:00:12]}  Kh7 {[%clk 0:00:10]} 34. Qb1+ {[%clk 0:00:12]}  Kh8 {[%clk 0:00:07]} 35. Qg6 {[%clk 0:00:12]}  Rf6 {[%clk 0:00:07]} 36. Qd3 {[%clk 0:00:12]}  Kg8 {[%clk 0:00:07]} 37. Qc3 {[%clk 0:00:11]}  R6f7 {[%clk 0:00:07]} 38. f3 {[%clk 0:00:11]}  Rb7 {[%clk 0:00:07]} 39. Bd6 {[%clk 0:00:10]}  Re8 {[%clk 0:00:07]} 40. Be5 {[%clk 0:00:09]}  Rf7 {[%clk 0:00:07]} 41. Kh2 {[%clk 0:00:09]}  Ref8 {[%clk 0:00:07]} 42. Bd4 {[%clk 0:00:09]}  Re8 {[%clk 0:00:07]} 43. Qe3 {[%clk 0:00:09]}  Ree7 {[%clk 0:00:07]} 44. Bc5 {[%clk 0:00:09]}  Rb7 {[%clk 0:00:08]} 45. Qd4 {[%clk 0:00:08]}  a6 {[%clk 0:00:08]} 46. Qd3 {[%clk 0:00:07]}  Rbc7 {[%clk 0:00:08]} 47. Bd4 {[%clk 0:00:06]}  Rb7 {[%clk 0:00:07]} 48. Qxa6 {[%clk 0:00:06]}  Rb3 {[%clk 0:00:07]} 49. Qc8+ {[%clk 0:00:06]}  Kh7 {[%clk 0:00:07]} 50. Qc2+ {[%clk 0:00:06]}  Kg8 {[%clk 0:00:06]} 51. Be5 {[%clk 0:00:05]}  Rxa3 {[%clk 0:00:05]} 52. Qc8+ {[%clk 0:00:05]}  Kh7 {[%clk 0:00:05]} 53. Qc2+ {[%clk 0:00:05]}  Kg8 {[%clk 0:00:06]} 54. Qc1 {[%clk 0:00:06]}  Raa7 {[%clk 0:00:05]} 55. Qc8+ {[%clk 0:00:05]}  Kh7 {[%clk 0:00:05]} 56. Qc2+ {[%clk 0:00:06]}  Kg8 {[%clk 0:00:06]} 57. Qb2 {[%clk 0:00:06]}  Rab7 {[%clk 0:00:05]} 58. Qc2 {[%clk 0:00:07]}  Ra7 {[%clk 0:00:06]} 59. Bd4 {[%clk 0:00:06]}  Ra2 {[%clk 0:00:06]} 60. Qc8+ {[%clk 0:00:06]}  Kh7 {[%clk 0:00:06]} 61. Kg3 {[%clk 0:00:05]}  Ra6 {[%clk 0:00:03]} 62. Qc3 {[%clk 0:00:05]}  Rc6 {[%clk 0:00:03]} 63. Qd3+ {[%clk 0:00:05]}  Kg8 {[%clk 0:00:03]} 64. Qb5 {[%clk 0:00:05]}  Rc8 {[%clk 0:00:03]} 65. Qb4 {[%clk 0:00:05]}  Rcf8 {[%clk 0:00:04]} 66. Qd2 {[%clk 0:00:05]}  Rd8 {[%clk 0:00:03]} 67. Qc3 {[%clk 0:00:05]}  Re8 {[%clk 0:00:02]} 68. Qb2 {[%clk 0:00:05]}  Rd7 {[%clk 0:00:03]} 69. Qb4 {[%clk 0:00:04]}  Ree7 {[%clk 0:00:03]} 70. Bc5 {[%clk 0:00:05]}  Rf7 {[%clk 0:00:03]} 71. Qd4 {[%clk 0:00:05]}  Kh7 {[%clk 0:00:03]} 72. Qd3+ {[%clk 0:00:05]}  Rf5 {[%clk 0:00:03]} 73. Qc3 {[%clk 0:00:05]}  Kg8 {[%clk 0:00:04]} 74. Kh2 {[%clk 0:00:05]}  Rdf7 {[%clk 0:00:04]} 75. Bd4 {[%clk 0:00:05]}  Rf4 {[%clk 0:00:04]} 76. Be5 {[%clk 0:00:06]}  R4f5 {[%clk 0:00:04]} 77. Bd6 {[%clk 0:00:05]}  h5 {[%clk 0:00:05]} 78. Bg3 {[%clk 0:00:05]}  Kh7 {[%clk 0:00:05]} 79. Be5 {[%clk 0:00:06]}  Rg5 {[%clk 0:00:05]} 80. Bd4 {[%clk 0:00:05]}  Rg6 {[%clk 0:00:04]} 81. Qd3 {[%clk 0:00:05]}  Rf5 {[%clk 0:00:05]} 82. Be3 {[%clk 0:00:05]}  Rf7 {[%clk 0:00:03]} 83. Qc2 {[%clk 0:00:04]}  Rb7 {[%clk 0:00:03]} 84. g4 {[%clk 0:00:03]}  hxg4 {[%clk 0:00:02]} 85. hxg4 {[%clk 0:00:04]}  Bb3 {[%clk 0:00:01]} 86. Qc3 {[%clk 0:00:04]}  Bd5 {[%clk 0:00:02]} 87. Kg3 {[%clk 0:00:04]}  Rb3 {[%clk 0:00:02]} 88. Qd4 {[%clk 0:00:05]}  Rf6 {[%clk 0:00:02]} 89. Bf4 {[%clk 0:00:04]}  Rxf3+ {[%clk 0:00:01]} 90. Kh4 {[%clk 0:00:04]}  R3xf4 {[%clk 0:00:02]} 91. Qd2 {[%clk 0:00:03]}  Rf3 {[%clk 0:00:03]} 92. Qh2 {[%clk 0:00:03]}  Kg8 {[%clk 0:00:02]} 93. Kg5 {[%clk 0:00:04]}  Rf8 {[%clk 0:00:03]} 94. Qc7 {[%clk 0:00:03]}  R3f6 {[%clk 0:00:03]} 95. Kh4 {[%clk 0:00:02]}  Be4 {[%clk 0:00:03]} 96. Kg3 {[%clk 0:00:03]}  Bh7 {[%clk 0:00:04]} 97. Kh4 {[%clk 0:00:03]}  Rh6+ {[%clk 0:00:04]} 98. Kg3 {[%clk 0:00:03]}  Rg6 {[%clk 0:00:05]} 99. Kh4 {[%clk 0:00:04]}  Rgf6 {[%clk 0:00:05]} 100. Kg3 {[%clk 0:00:04]}  R6f7 {[%clk 0:00:05]} 101. Qc6 {[%clk 0:00:04]}  Rf6 {[%clk 0:00:04]} 102. g5 {[%clk 0:00:04]}  Rg6 {[%clk 0:00:04]} 103. Kg4 {[%clk 0:00:04]}  Kh8 {[%clk 0:00:05]} 104. Kh4 {[%clk 0:00:05]}  Bg8 {[%clk 0:00:05]} 105. Kg4 {[%clk 0:00:05]}  Bf7 {[%clk 0:00:05]} 106. Qc2 {[%clk 0:00:05]}  Kg8 {[%clk 0:00:06]} 107. Qh2 {[%clk 0:00:06]}  Re8 {[%clk 0:00:05]} 108. Qe2 {[%clk 0:00:06]}  e5 {[%clk 0:00:05]} 109. Qe4 {[%clk 0:00:06]}  Rge6 {[%clk 0:00:06]} 110. Kg3 {[%clk 0:00:06]}  Bg6 {[%clk 0:00:06]} 111. Qe3 {[%clk 0:00:06]}  e4 {[%clk 0:00:06]} 112. Qf2 {[%clk 0:00:05]}  Rf8 {[%clk 0:00:06]} 113. Qc5 {[%clk 0:00:05]}  Rf3+ {[%clk 0:00:07]} 114. Kg4 {[%clk 0:00:05]}  Rf8 {[%clk 0:00:06]} 115. Qd5 {[%clk 0:00:05]}  Re8 {[%clk 0:00:06]} 116. Kf4 {[%clk 0:00:04]}  e3 {[%clk 0:00:06]} 117. Qd1 {[%clk 0:00:03]}  e2 {[%clk 0:00:07]} 118. Qe1 {[%clk 0:00:04]}  Rf8+ {[%clk 0:00:07]} 119. Kg4 {[%clk 0:00:04]}  Rf1 {[%clk 0:00:08]} 120. Qb4 {[%clk 0:00:02]}  e1=Q {[%clk 0:00:08]} 121. Qb8+ {[%clk 0:00:03]}  Rf8 {[%clk 0:00:08]} 122. Qxf8+ {[%clk 0:00:03]}  Kxf8 {[%clk 0:00:07]} 123. Kf4 {[%clk 0:00:04]}  Re4+ {[%clk 0:00:06]} 124. Kf3 {[%clk 0:00:03]}  Qe2+ {[%clk 0:00:05]} 125. Kg3 {[%clk 0:00:04]}  Rg4+ {[%clk 0:00:05]} 126. Kh3 {[%clk 0:00:04]}  Qg2# {[%clk 0:00:06]} 0-1


[Site "https://www.chess.com"]

[Event "Titled Tuesday Blitz March 07 Early 2023"]
[White "Sharapov, Evgeny"]
[Black "Kriti Mayur Patel"]
[WhiteFideId "14103133"]
[BlackFideId "35061780"]
[WhiteElo "2367"]
[BlackElo "1306"]
[Result "1-0"]
[Round "01"]
[TimeControl "180+2"]
[Date "2023.03.07"]
[WhiteClock "0:01:43"]
[BlackClock "0:01:49"]

1. e4 {[%clk 0:02:59]}  e5 {[%clk 0:03:00]} 2. Nf3 {[%clk 0:02:58]}  Nc6 {[%clk 0:03:00]} 3. Bb5 {[%clk 0:02:58]}  a6 {[%clk 0:02:59]} 4. Ba4 {[%clk 0:02:58]}  Nf6 {[%clk 0:03:00]} 5. d3 {[%clk 0:02:58]}  b5 {[%clk 0:03:00]} 6. Bb3 {[%clk 0:02:57]}  Bc5 {[%clk 0:03:01]} 7. O-O {[%clk 0:02:57]}  d6 {[%clk 0:02:59]} 8. h3 {[%clk 0:02:56]}  h6 {[%clk 0:02:57]} 9. c3 {[%clk 0:02:56]}  O-O {[%clk 0:02:58]} 10. Re1 {[%clk 0:02:54]}  Bb6 {[%clk 0:02:57]} 11. Nbd2 {[%clk 0:02:54]}  Ne7 {[%clk 0:02:57]} 12. Nf1 {[%clk 0:02:53]}  Ng6 {[%clk 0:02:57]} 13. Ng3 {[%clk 0:02:48]}  Bb7 {[%clk 0:02:58]} 14. Be3 {[%clk 0:02:42]}  a5 {[%clk 0:02:53]} 15. Bxb6 {[%clk 0:02:41]}  cxb6 {[%clk 0:02:54]} 16. a3 {[%clk 0:02:38]}  Qd7 {[%clk 0:02:46]} 17. d4 {[%clk 0:02:34]}  Rad8 {[%clk 0:02:42]} 18. Qd2 {[%clk 0:02:31]}  Nh5 {[%clk 0:02:37]} 19. Nxh5 {[%clk 0:02:30]}  Kh7 {[%clk 0:02:23]} 20. dxe5 {[%clk 0:02:27]}  dxe5 {[%clk 0:02:22]} 21. Qxd7 {[%clk 0:02:26]}  Rxd7 {[%clk 0:02:22]} 22. Rad1 {[%clk 0:02:26]}  Rc7 {[%clk 0:02:20]} 23. Ng3 {[%clk 0:02:22]}  Nf4 {[%clk 0:02:19]} 24. Nxe5 {[%clk 0:02:20]}  Rc5 {[%clk 0:02:19]} 25. Nxf7 {[%clk 0:02:15]}  a4 {[%clk 0:02:12]} 26. Ba2 {[%clk 0:02:15]}  Rc7 {[%clk 0:02:10]} 27. Nd6 {[%clk 0:02:14]}  Ba8 {[%clk 0:02:09]} 28. Nxb5 {[%clk 0:02:13]}  Rc5 {[%clk 0:02:10]} 29. Nd4 {[%clk 0:02:11]}  Rg5 {[%clk 0:02:10]} 30. Nf3 {[%clk 0:01:59]}  Rg6 {[%clk 0:02:09]} 31. Bb1 {[%clk 0:01:53]}  Kh8 {[%clk 0:01:59]} 32. e5 {[%clk 0:01:50]}  Bxf3 {[%clk 0:01:56]} 33. gxf3 {[%clk 0:01:45]}  Rg5 {[%clk 0:01:53]} 34. h4 {[%clk 0:01:44]}  Re8 {[%clk 0:01:49]} 35. hxg5 {[%clk 0:01:43]} 1-0


[Site "https://www.chess.com"]

[Event "Titled Tuesday Blitz March 07 Early 2023"]
[White "Necula, Iulian"]
[Black "Petukhov, Dmitry"]
[WhiteFideId "1232380"]
[BlackFideId "4142748"]
[WhiteElo "1790"]
[BlackElo "2311"]
[Result "0-1"]
[Round "01"]
[TimeControl "180+2"]
[Date "2023.03.07"]
[WhiteClock "0:00:19"]
[BlackClock "0:00:58"]

1. d4 {[%clk 0:03:00]}  Nf6 {[%clk 0:02:59]} 2. Nc3 {[%clk 0:03:00]}  g6 {[%clk 0:03:00]} 3. e4 {[%clk 0:02:57]}  d6 {[%clk 0:03:00]} 4. Be3 {[%clk 0:02:56]}  Bg7 {[%clk 0:03:00]} 5. Qd2 {[%clk 0:02:57]}  O-O {[%clk 0:03:00]} 6. Bh6 {[%clk 0:02:56]}  c5 {[%clk 0:02:57]} 7. Bxg7 {[%clk 0:02:56]}  Kxg7 {[%clk 0:02:58]} 8. O-O-O {[%clk 0:02:51]}  cxd4 {[%clk 0:02:57]} 9. Qxd4 {[%clk 0:02:51]}  Nc6 {[%clk 0:02:58]} 10. Qd2 {[%clk 0:02:45]}  Be6 {[%clk 0:02:54]} 11. Kb1 {[%clk 0:02:44]}  Qa5 {[%clk 0:02:52]} 12. a3 {[%clk 0:02:35]}  Rac8 {[%clk 0:02:49]} 13. h4 {[%clk 0:02:32]}  h5 {[%clk 0:02:40]} 14. f3 {[%clk 0:02:32]}  Rh8 {[%clk 0:02:28]} 15. Nh3 {[%clk 0:02:28]}  Ne5 {[%clk 0:02:25]} 16. Ng5 {[%clk 0:02:23]}  Bc4 {[%clk 0:02:25]} 17. Bd3 {[%clk 0:02:09]}  b5 {[%clk 0:02:24]} 18. Nd5 {[%clk 0:01:58]}  Qxd2 {[%clk 0:02:21]} 19. Rxd2 {[%clk 0:01:58]}  Nxd5 {[%clk 0:02:12]} 20. exd5 {[%clk 0:01:57]}  Nxd3 {[%clk 0:02:10]} 21. cxd3 {[%clk 0:01:55]}  Bxd5 {[%clk 0:02:10]} 22. Re1 {[%clk 0:01:48]}  e6 {[%clk 0:02:09]} 23. Nh3 {[%clk 0:01:40]}  Bb3 {[%clk 0:01:59]} 24. Nf4 {[%clk 0:01:37]}  Rc7 {[%clk 0:01:56]} 25. Ne2 {[%clk 0:01:35]}  Rhc8 {[%clk 0:01:54]} 26. Nd4 {[%clk 0:01:32]}  Bd5 {[%clk 0:01:53]} 27. Nxb5 {[%clk 0:01:28]}  Rd7 {[%clk 0:01:53]} 28. Nc3 {[%clk 0:01:26]}  Bb3 {[%clk 0:01:52]} 29. Ne4 {[%clk 0:01:20]}  d5 {[%clk 0:01:50]} 30. Ng5 {[%clk 0:01:16]}  Rdc7 {[%clk 0:01:49]} 31. Nh3 {[%clk 0:01:11]}  Rc2 {[%clk 0:01:44]} 32. Red1 {[%clk 0:00:55]}  e5 {[%clk 0:01:41]} 33. Ng5 {[%clk 0:00:51]}  f6 {[%clk 0:01:37]} 34. Nh3 {[%clk 0:00:51]}  Kf7 {[%clk 0:01:30]} 35. Ng1 {[%clk 0:00:48]}  Ke6 {[%clk 0:01:29]} 36. Ne2 {[%clk 0:00:48]}  d4 {[%clk 0:01:24]} 37. f4 {[%clk 0:00:46]}  Kd5 {[%clk 0:01:09]} 38. fxe5 {[%clk 0:00:45]}  fxe5 {[%clk 0:01:10]} 39. Nc1 {[%clk 0:00:33]}  Rxc1+ {[%clk 0:00:58]} 40. Rxc1 {[%clk 0:00:33]}  Ba2+ {[%clk 0:00:59]} 41. Kxa2 {[%clk 0:00:32]}  Rxc1 {[%clk 0:01:00]} 42. g4 {[%clk 0:00:28]}  e4 {[%clk 0:00:59]} 43. dxe4+ {[%clk 0:00:27]}  Kxe4 {[%clk 0:01:00]} 44. gxh5 {[%clk 0:00:28]}  gxh5 {[%clk 0:01:00]} 45. Rg2 {[%clk 0:00:19]}  d3 {[%clk 0:00:59]} 46. Rg5 {[%clk 0:00:19]}  d2 {[%clk 0:00:58]} 0-1


[Site "https://www.chess.com"]

[Event "Titled Tuesday Blitz March 07 Early 2023"]
[White "Sztokbant, Bernardo Vainzoff"]
[Black "Vanek, Tomas"]
[WhiteFideId "2115956"]
[BlackFideId "313459"]
[WhiteElo "2222"]
[BlackElo "2052"]
[Result "1-0"]
[Round "01"]
[TimeControl "180+2"]
[Date "2023.03.07"]
[WhiteClock "0:00:11"]
[BlackClock "0:00:25"]

1. e4 {[%clk 0:02:49]}  c5 {[%clk 0:02:59]} 2. c3 {[%clk 0:02:45]}  Nf6 {[%clk 0:02:57]} 3. e5 {[%clk 0:02:44]}  Nd5 {[%clk 0:02:57]} 4. d4 {[%clk 0:02:45]}  cxd4 {[%clk 0:02:47]} 5. Nf3 {[%clk 0:02:46]}  d6 {[%clk 0:02:40]} 6. cxd4 {[%clk 0:02:46]}  Nc6 {[%clk 0:02:31]} 7. Nc3 {[%clk 0:02:45]}  e6 {[%clk 0:02:29]} 8. Nxd5 {[%clk 0:02:35]}  exd5 {[%clk 0:02:28]} 9. Bd3 {[%clk 0:02:32]}  Bg4 {[%clk 0:02:23]} 10. O-O {[%clk 0:02:25]}  Bxf3 {[%clk 0:01:50]} 11. Qxf3 {[%clk 0:02:25]}  dxe5 {[%clk 0:01:46]} 12. dxe5 {[%clk 0:02:23]}  Be7 {[%clk 0:01:30]} 13. Bf4 {[%clk 0:02:15]}  O-O {[%clk 0:01:28]} 14. Rad1 {[%clk 0:02:10]}  Bg5 {[%clk 0:01:24]} 15. Bg3 {[%clk 0:02:10]}  g6 {[%clk 0:01:22]} 16. Bc2 {[%clk 0:01:54]}  d4 {[%clk 0:01:21]} 17. Rfe1 {[%clk 0:01:51]}  Qe7 {[%clk 0:01:16]} 18. Qe4 {[%clk 0:01:27]}  Rad8 {[%clk 0:01:14]} 19. f4 {[%clk 0:01:25]}  Bh6 {[%clk 0:01:09]} 20. f5 {[%clk 0:01:21]}  Be3+ {[%clk 0:01:06]} 21. Kh1 {[%clk 0:01:21]}  Nb4 {[%clk 0:01:06]} 22. Bb3 {[%clk 0:01:21]}  gxf5 {[%clk 0:00:59]} 23. Qxf5 {[%clk 0:01:18]}  Qg5 {[%clk 0:00:59]} 24. Qf3 {[%clk 0:00:57]}  Nc6 {[%clk 0:00:46]} 25. Qe4 {[%clk 0:00:54]}  Qg6 {[%clk 0:00:42]} 26. Qf3 {[%clk 0:00:49]}  Kg7 {[%clk 0:00:42]} 27. Rf1 {[%clk 0:00:43]}  f5 {[%clk 0:00:39]} 28. exf6+ {[%clk 0:00:31]}  Rxf6 {[%clk 0:00:39]} 29. Qxf6+ {[%clk 0:00:29]}  Qxf6 {[%clk 0:00:39]} 30. Rxf6 {[%clk 0:00:30]}  Kxf6 {[%clk 0:00:40]} 31. Rf1+ {[%clk 0:00:28]}  Kg7 {[%clk 0:00:40]} 32. Rf7+ {[%clk 0:00:27]}  Kg6 {[%clk 0:00:39]} 33. Rxb7 {[%clk 0:00:26]}  d3 {[%clk 0:00:39]} 34. Rc7 {[%clk 0:00:25]}  Nd4 {[%clk 0:00:34]} 35. Bd1 {[%clk 0:00:22]}  d2 {[%clk 0:00:34]} 36. Rxa7 {[%clk 0:00:22]}  Rf8 {[%clk 0:00:33]} 37. Ra6+ {[%clk 0:00:18]}  Kg7 {[%clk 0:00:31]} 38. Be5+ {[%clk 0:00:15]}  Kg8 {[%clk 0:00:31]} 39. Rf6 {[%clk 0:00:06]}  Re8 {[%clk 0:00:22]} 40. Bg3 {[%clk 0:00:04]}  Bg5 {[%clk 0:00:21]} 41. Rf1 {[%clk 0:00:04]}  Nf5 {[%clk 0:00:19]} 42. Bf2 {[%clk 0:00:03]}  Ne3 {[%clk 0:00:18]} 43. Rg1 {[%clk 0:00:01]}  Nxd1 {[%clk 0:00:18]} 44. Rxd1 {[%clk 0:00:02]}  Kg7 {[%clk 0:00:17]} 45. Kg1 {[%clk 0:00:02]}  Kf6 {[%clk 0:00:16]} 46. Kf1 {[%clk 0:00:03]}  Bf4 {[%clk 0:00:15]} 47. g3 {[%clk 0:00:03]}  Bh6 {[%clk 0:00:15]} 48. b4 {[%clk 0:00:03]}  Re5 {[%clk 0:00:12]} 49. Bd4 {[%clk 0:00:02]}  Kf5 {[%clk 0:00:12]} 50. Bxe5 {[%clk 0:00:03]}  Kxe5 {[%clk 0:00:13]} 51. Ke2 {[%clk 0:00:04]}  Kd4 {[%clk 0:00:13]} 52. Rxd2+ {[%clk 0:00:05]}  Bxd2 {[%clk 0:00:13]} 53. Kxd2 {[%clk 0:00:05]}  Kc4 {[%clk 0:00:14]} 54. a3 {[%clk 0:00:05]}  Kb5 {[%clk 0:00:15]} 55. Ke3 {[%clk 0:00:05]}  Ka4 {[%clk 0:00:15]} 56. Kf4 {[%clk 0:00:06]}  Kxa3 {[%clk 0:00:16]} 57. b5 {[%clk 0:00:06]}  Kb4 {[%clk 0:00:17]} 58. b6 {[%clk 0:00:07]}  Kc5 {[%clk 0:00:18]} 59. b7 {[%clk 0:00:08]}  Kd6 {[%clk 0:00:19]} 60. b8=Q+ {[%clk 0:00:09]}  Ke7 {[%clk 0:00:20]} 61. Qh8 {[%clk 0:00:09]}  Kf7 {[%clk 0:00:20]} 62. Qxh7+ {[%clk 0:00:09]}  Kf6 {[%clk 0:00:21]} 63. g4 {[%clk 0:00:07]}  Ke6 {[%clk 0:00:21]} 64. Qf5+ {[%clk 0:00:08]}  Kd6 {[%clk 0:00:22]} 65. g5 {[%clk 0:00:08]}  Ke7 {[%clk 0:00:23]} 66. g6 {[%clk 0:00:09]}  Kd8 {[%clk 0:00:23]} 67. g7 {[%clk 0:00:10]}  Ke7 {[%clk 0:00:24]} 68. g8=Q {[%clk 0:00:10]}  Kd6 {[%clk 0:00:25]} 69. Qge6+ {[%clk 0:00:10]}  Kc7 {[%clk 0:00:25]} 70. Qff7+ {[%clk 0:00:11]} 1-0


[Site "https://www.chess.com"]

[Event "Titled Tuesday Blitz March 07 Early 2023"]
[White "Berthier, Hugo"]
[Black "Castillo Pena, Patricia Evarista"]
[WhiteFideId "655864"]
[BlackFideId "6412106"]
[WhiteElo "2193"]
[BlackElo "1919"]
[Result "1-0"]
[Round "01"]
[TimeControl "180+2"]
[Date "2023.03.07"]
[WhiteClock "0:00:03"]
[BlackClock "0:00:02"]

1. e4 {[%clk 0:02:57]}  c5 {[%clk 0:02:59]} 2. Nf3 {[%clk 0:02:57]}  d6 {[%clk 0:02:58]} 3. Bb5+ {[%clk 0:02:55]}  Bd7 {[%clk 0:02:57]} 4. Bxd7+ {[%clk 0:02:53]}  Qxd7 {[%clk 0:02:56]} 5. O-O {[%clk 0:02:51]}  Nf6 {[%clk 0:02:55]} 6. Re1 {[%clk 0:02:51]}  Nc6 {[%clk 0:02:54]} 7. c3 {[%clk 0:02:50]}  g6 {[%clk 0:02:53]} 8. d4 {[%clk 0:02:48]}  cxd4 {[%clk 0:02:53]} 9. cxd4 {[%clk 0:02:48]}  e6 {[%clk 0:02:49]} 10. Nc3 {[%clk 0:02:47]}  Bg7 {[%clk 0:02:48]} 11. Bf4 {[%clk 0:02:34]}  O-O {[%clk 0:02:45]} 12. h3 {[%clk 0:02:28]}  Rfd8 {[%clk 0:02:43]} 13. Qd2 {[%clk 0:02:26]}  Rac8 {[%clk 0:02:40]} 14. Rad1 {[%clk 0:02:25]}  Qe7 {[%clk 0:02:28]} 15. Bg5 {[%clk 0:02:22]}  h6 {[%clk 0:02:27]} 16. Bxh6 {[%clk 0:02:20]}  Kh7 {[%clk 0:02:12]} 17. Bxg7 {[%clk 0:02:20]}  Kxg7 {[%clk 0:02:13]} 18. Qg5 {[%clk 0:02:14]}  e5 {[%clk 0:01:58]} 19. d5 {[%clk 0:02:08]}  Nb4 {[%clk 0:01:53]} 20. a3 {[%clk 0:02:04]}  Na6 {[%clk 0:01:53]} 21. Qe3 {[%clk 0:01:59]}  Nc5 {[%clk 0:01:50]} 22. b4 {[%clk 0:01:54]}  Nb3 {[%clk 0:01:44]} 23. Rb1 {[%clk 0:01:52]}  Nd4 {[%clk 0:01:43]} 24. Nxd4 {[%clk 0:01:52]}  exd4 {[%clk 0:01:43]} 25. Qxd4 {[%clk 0:01:53]}  Kg8 {[%clk 0:01:39]} 26. Rbc1 {[%clk 0:01:52]}  a6 {[%clk 0:01:39]} 27. f3 {[%clk 0:01:35]}  b5 {[%clk 0:01:33]} 28. Nb1 {[%clk 0:01:27]}  Nh5 {[%clk 0:01:27]} 29. Nd2 {[%clk 0:01:24]}  Nf4 {[%clk 0:01:26]} 30. Kh2 {[%clk 0:00:49]}  Qg5 {[%clk 0:01:12]} 31. g3 {[%clk 0:00:48]}  Nh5 {[%clk 0:01:09]} 32. Qf2 {[%clk 0:00:44]}  Qe5 {[%clk 0:00:45]} 33. Nf1 {[%clk 0:00:30]}  Rc4 {[%clk 0:00:22]} 34. Rxc4 {[%clk 0:00:25]}  bxc4 {[%clk 0:00:21]} 35. f4 {[%clk 0:00:19]}  Qc3 {[%clk 0:00:18]} 36. Re3 {[%clk 0:00:17]}  Qd4 {[%clk 0:00:13]} 37. Qd2 {[%clk 0:00:15]}  Qa1 {[%clk 0:00:11]} 38. Kg2 {[%clk 0:00:11]}  Rc8 {[%clk 0:00:11]} 39. Rc3 {[%clk 0:00:11]}  Nf6 {[%clk 0:00:07]} 40. Qe3 {[%clk 0:00:06]}  Nxe4 {[%clk 0:00:06]} 41. Rc1 {[%clk 0:00:03]}  Qb2+ {[%clk 0:00:02]} 42. Kf3 {[%clk 0:00:03]} 1-0


[Site "https://www.chess.com"]

[Event "Titled Tuesday Blitz March 07 Early 2023"]
[White "Ezat, Mohamed"]
[Black "Lohani, Sujana"]
[WhiteFideId "10600906"]
[BlackFideId "12311987"]
[WhiteElo "2386"]
[BlackElo "1718"]
[Result "1-0"]
[Round "01"]
[TimeControl "180+2"]
[Date "2023.03.07"]
[WhiteClock "0:00:14"]
[BlackClock "0:00:01"]

1. d4 {[%clk 0:02:43]}  g6 {[%clk 0:02:55]} 2. e4 {[%clk 0:02:40]}  Bg7 {[%clk 0:02:55]} 3. Nf3 {[%clk 0:02:40]}  d6 {[%clk 0:02:48]} 4. Nc3 {[%clk 0:02:39]}  Nf6 {[%clk 0:02:46]} 5. Bg5 {[%clk 0:02:38]}  O-O {[%clk 0:02:46]} 6. h3 {[%clk 0:02:38]}  h6 {[%clk 0:02:46]} 7. Be3 {[%clk 0:02:37]}  a6 {[%clk 0:02:41]} 8. Qd2 {[%clk 0:02:37]}  Kh7 {[%clk 0:02:39]} 9. g4 {[%clk 0:02:36]}  b5 {[%clk 0:02:33]} 10. g5 {[%clk 0:02:36]}  b4 {[%clk 0:02:30]} 11. gxf6 {[%clk 0:02:27]}  bxc3 {[%clk 0:02:29]} 12. bxc3 {[%clk 0:02:27]}  exf6 {[%clk 0:02:25]} 13. h4 {[%clk 0:02:28]}  Bg4 {[%clk 0:02:11]} 14. Be2 {[%clk 0:02:27]}  Nd7 {[%clk 0:01:42]} 15. Ng5+ {[%clk 0:02:25]}  fxg5 {[%clk 0:01:38]} 16. Bxg4 {[%clk 0:02:24]}  gxh4 {[%clk 0:01:31]} 17. Bxd7 {[%clk 0:02:19]}  Qxd7 {[%clk 0:01:31]} 18. Rxh4 {[%clk 0:01:57]}  h5 {[%clk 0:01:29]} 19. O-O-O {[%clk 0:01:51]}  Rab8 {[%clk 0:01:27]} 20. Rdh1 {[%clk 0:01:45]}  Qb5 {[%clk 0:01:19]} 21. Qd3 {[%clk 0:01:39]}  Bf6 {[%clk 0:01:03]} 22. Kd2 {[%clk 0:00:44]}  Qxd3+ {[%clk 0:00:48]} 23. Kxd3 {[%clk 0:00:43]}  Bxh4 {[%clk 0:00:47]} 24. Rxh4 {[%clk 0:00:42]}  Rb2 {[%clk 0:00:42]} 25. a4 {[%clk 0:00:37]}  Ra2 {[%clk 0:00:40]} 26. f4 {[%clk 0:00:36]}  Rxa4 {[%clk 0:00:36]} 27. f5 {[%clk 0:00:36]}  Ra5 {[%clk 0:00:27]} 28. d5 {[%clk 0:00:28]}  Re8 {[%clk 0:00:20]} 29. Rf4 {[%clk 0:00:25]}  Kg7 {[%clk 0:00:16]} 30. Bd4+ {[%clk 0:00:24]}  Kg8 {[%clk 0:00:12]} 31. fxg6 {[%clk 0:00:24]}  fxg6 {[%clk 0:00:11]} 32. Rf6 {[%clk 0:00:25]}  Kh7 {[%clk 0:00:11]} 33. Rf7+ {[%clk 0:00:25]}  Kh6 {[%clk 0:00:10]} 34. Be3+ {[%clk 0:00:17]}  g5 {[%clk 0:00:09]} 35. Rxc7 {[%clk 0:00:18]}  Ra4 {[%clk 0:00:07]} 36. c4 {[%clk 0:00:16]}  Ra3+ {[%clk 0:00:06]} 37. c3 {[%clk 0:00:16]}  Ra1 {[%clk 0:00:05]} 38. Rd7 {[%clk 0:00:17]}  h4 {[%clk 0:00:04]} 39. Rxd6+ {[%clk 0:00:16]}  Kh5 {[%clk 0:00:04]} 40. Rd7 {[%clk 0:00:17]}  Re1 {[%clk 0:00:04]} 41. c5 {[%clk 0:00:16]}  Kg4 {[%clk 0:00:02]} 42. c6 {[%clk 0:00:16]}  Kf3 {[%clk 0:00:03]} 43. Bxg5 {[%clk 0:00:15]}  R1xe4 {[%clk 0:00:02]} 44. c7 {[%clk 0:00:14]}  Rc8 {[%clk 0:00:01]} 45. d6 {[%clk 0:00:13]}  Re6 {[%clk 0:00:01]} 46. Rf7+ {[%clk 0:00:14]} 1-0


[Site "https://www.chess.com"]